fUST/lending_fUST_20250302
["ID","MTS","AMOUNT","RATE_DAILY","PERIOD"]
[355010272,1740865846998,-1884.58,0.00024931,2]
[355010273,1740865847008,-500.0,0.00024931,2]
[355010274,1740865847018,-151.0,0.00024931,7]
[355010275,1740865847028,-200.0,0.00024931,2]
[355010276,1740865847038,-1033.63,0.00024931,2]
[355010277,1740865847049,-557.01,0.00024931,2]
[355010278,1740865847059,-1211.77,0.00024931,2]
[355010279,1740865847070,-500.0,0.00024931,2]
[355010280,1740865847080,-151.0,0.00024931,7]
[355010281,1740865847090,-500.0,0.00024931,2]
[355010282,1740865847100,-2235.03,0.00024931,2]
[355010283,1740865847110,-3413.83,0.00024931,2]
[355010284,1740865847119,-910.58,0.00024931,2]
[355010285,1740865847129,-4306.34,0.00024931,2]
[355010286,1740865847139,-500.0,0.00024931,2]
[355010287,1740865847149,-1975.06,0.00024931,2]
[355010288,1740865847159,-500.0,0.00024931,2]
[355010289,1740865847169,-764.64,0.00024931,2]
[355010290,1740865847179,-500.0,0.00024931,2]
[355010291,1740865847189,-993.45,0.00024931,2]
[355010292,1740865847199,-1332.32,0.00024931,2]
[355010293,1740865847210,-19624.61182001,0.00024931,7]
[355010294,1740865847224,-500.0,0.00024931,2]
[355010295,1740865847233,-1827.1,0.00024931,2]
[355010296,1740865847243,-500.0,0.00024931,2]
[355010297,1740865847253,-500.0,0.00024931,2]
[355010298,1740865847264,-500.0,0.00024931,2]
[355010299,1740865847274,-500.0,0.00024931,2]
[355010300,1740865847284,-171.968109,0.00024931,7]
[355010301,1740865847294,-641.28,0.00024931,2]
[355010302,1740865847305,-500.0,0.00024931,2]
[355010303,1740865847315,-171.968109,0.00024931,7]
[355010304,1740865847325,-697.14,0.00024931,2]
[355010305,1740865847336,-500.0,0.00024931,2]
[355010306,1740865847346,-500.0,0.00024931,2]
[355010307,1740865847356,-500.0,0.00024931,2]
[355010308,1740865847368,-719.29,0.00024931,2]
[355010309,1740865847378,-14467.93,0.00024931,2]
[355010310,1740865847389,-1028.98,0.00024931,2]
[355010311,1740865847399,-500.0,0.00024931,2]
[355010312,1740865847409,-500.0,0.00024931,2]
[355010313,1740865847419,-1316.85,0.00024931,2]
[355010314,1740865847429,-500.0,0.00024931,2]
[355010315,1740865847440,-1060.02,0.00024931,2]
[355010316,1740865847452,-500.0,0.00024931,2]
[355010317,1740865847463,-255.57393402,0.00024931,2]
[355010318,1740865847473,-723.94,0.00024931,2]
[355010319,1740865847483,-1802.02,0.00024931,2]
[355010320,1740865847493,-500.0,0.00024931,2]
[355010321,1740865847503,-7079.6,0.00024931,2]
[355010322,1740865847513,-500.0,0.00024931,2]
[355010323,1740865847524,-500.0,0.00024931,2]
[355010324,1740865847534,-500.0,0.00024931,2]
[355010325,1740865847545,-717.71,0.00024931,2]
[355010326,1740865847558,-500.0,0.00024931,2]
[355010327,1740865847568,-500.0,0.00024931,2]
[355010328,1740865847579,-500.0,0.00024931,2]
[355010329,1740865847589,-4844.06,0.00024931,2]
[355010330,1740865847600,-897.19,0.00024931,2]
[355010331,1740865847610,-500.0,0.00024931,2]
[355010332,1740865847622,-500.0,0.00024931,2]
[355010333,1740865847896,-500.0,0.00024931,2]
[355010334,1740865847924,-500.0,0.00024931,2]
[355010335,1740865847934,-500.0,0.00024931,2]
[355010336,1740865847944,-9915.36,0.00024931,2]
[355010337,1740865847953,-500.0,0.00024931,2]
[355010338,1740865847963,-1789.36,0.00024931,2]
[355010339,1740865847972,-1104.480692,0.00024931,7]
[355010340,1740865847982,-749.64,0.00024931,2]
[355010341,1740865847992,-793.99,0.00024931,2]
[355010342,1740865848002,-500.0,0.00024931,2]
[355010343,1740865848011,-500.0,0.00024931,2]
[355010344,1740865848020,-1104.480692,0.00024931,7]
[355010345,1740865848030,-500.0,0.00024931,2]
[355010346,1740865848040,-500.0,0.00024931,2]
[355010347,1740865848049,-992.45,0.00024931,2]
[355010348,1740865848059,-612.24,0.00024931,2]
[355010349,1740865848068,-1220.97,0.00024931,2]
[355010350,1740865848078,-500.0,0.00024931,2]
[355010351,1740865848087,-6263.62,0.00024931,2]
[355010352,1740865848097,-500.0,0.00024931,2]
[355010353,1740865848107,-1332.97,0.00024931,2]
[355010354,1740865848116,-500.0,0.00024931,2]
[355010355,1740865848126,-500.0,0.00024931,2]
[355010356,1740865848136,-151.0,0.00024931,7]
[355010357,1740865848146,-151.0,0.00024931,7]
[355010358,1740865848156,-29909.84,0.00024931,2]
[355010359,1740865848165,-188.49445,0.00024931,7]
[355010360,1740865848175,-151.0,0.00024931,7]
[355010361,1740865848185,-151.0,0.00024931,7]
[355010362,1740865848194,-2844.36,0.00024931,2]
[355010363,1740865848204,-500.0,0.00024931,2]
[355010364,1740865848214,-500.0,0.00024931,2]
[355010365,1740865848223,-500.0,0.00024931,2]
[355010366,1740865848233,-188.49445,0.00024931,7]
[355010367,1740865848243,-766.2,0.00024931,2]
[355010368,1740865848253,-1338.98,0.00024931,2]
[355010369,1740865848263,-13654.62,0.00024931,2]
[355010370,1740865848273,-500.0,0.00024931,2]
[355010371,1740865848283,-500.0,0.00024931,2]
[355010372,1740865848293,-500.0,0.00024931,2]
[355010373,1740865848303,-1174.39,0.00024931,2]
[355010374,1740865848312,-1000.0,0.00024931,5]
[355010375,1740865848322,-2866.9,0.00024931,2]
[355010376,1740865848332,-3050.65,0.00024931,2]
[355010377,1740865848342,-2057.02,0.00024931,2]
[355010378,1740865848353,-938.36,0.00024931,2]
[355010379,1740865848363,-1450.21,0.00024931,2]
[355010380,1740865848375,-151.0,0.00024931,7]
[355010381,1740865848386,-366.736935,0.00024931,7]
[355010382,1740865848396,-151.0,0.00024931,7]
[355010383,1740865848407,-5637.78,0.00024931,2]
[355010384,1740865848417,-366.736935,0.00024931,7]
[355010385,1740865848427,-858.8,0.00024931,2]
[355010386,1740865848436,-366.736935,0.00024931,7]
[355010387,1740865848448,-151.0,0.00024931,7]
[355010388,1740865848458,-1441.91,0.00024931,2]
[355010389,1740865848468,-263.33209096,0.00024931,2]
[355010390,1740865848478,-151.0,0.00024931,7]
[355010391,1740865848489,-366.736935,0.00024931,7]
[355010392,1740865848499,-500.0,0.00024931,2]
[355010393,1740865848509,-500.0,0.00024931,2]
[355010394,1740865848520,-546.41,0.00024931,2]
[355010395,1740865848530,-9348.65,0.00024931,2]
[355010396,1740865848540,-500.0,0.00024931,2]
[355010397,1740865848554,-277.51506063,0.00024931,2]
[355010398,1740865848564,-752.72,0.00024931,2]
[355010399,1740865848574,-500.0,0.00024931,2]
[355010400,1740865848584,-160.336105,0.00024931,7]
[355010401,1740865848594,-500.0,0.00024931,2]
[355010402,1740865848603,-973.28,0.00024931,2]
[355010403,1740865848613,-160.336105,0.00024931,7]
[355010404,1740865848622,-540.686546,0.00024931,7]
[355010405,1740865848632,-540.686546,0.00024931,7]
[355010406,1740865848642,-500.0,0.00024931,2]
[355010407,1740865848652,-540.686546,0.00024931,7]
[355010408,1740865848661,-540.686546,0.00024931,7]
[355010409,1740865848671,-500.0,0.00024931,2]
[355010410,1740865848681,-500.0,0.00024931,2]
[355010411,1740865848690,-1190.61,0.00024931,2]
[355010412,1740865848700,-500.0,0.00024931,2]
[355010413,1740865848710,-2980.87,0.00024931,2]
[355010414,1740865848720,-500.0,0.00024931,2]
[355010415,1740865848729,-500.0,0.00024931,2]
[355010416,1740865848739,-500.0,0.00024931,2]
[355010417,1740865848748,-500.0,0.00024931,2]
[355010418,1740865848757,-500.0,0.00024931,2]
[355010419,1740865848766,-500.0,0.00024931,2]
[355010420,1740865848776,-539.63,0.00024931,2]
[355010421,1740865848785,-1014.87,0.00024931,2]
[355010422,1740865848795,-500.0,0.00024931,2]
[355010423,1740865848804,-500.0,0.00024931,2]
[355010424,1740865848814,-1765.74,0.00024931,2]
[355010425,1740865848823,-3437.15,0.00024931,2]
[355010426,1740865848833,-500.0,0.00024931,2]
[355010427,1740865848843,-500.0,0.00024931,2]
[355010428,1740865848852,-500.0,0.00024931,2]
[355010429,1740865848862,-500.0,0.00024931,2]
[355010430,1740865848872,-500.0,0.00024931,2]
[355010431,1740865848882,-604.33,0.00024931,2]
[355010432,1740865848892,-500.0,0.00024931,2]
[355010433,1740865848901,-1857.9,0.00024931,2]
[355010434,1740865848911,-1367.29,0.00024931,2]
[355010435,1740865848920,-785.26,0.00024931,2]
[355010436,1740865848930,-500.0,0.00024931,2]
[355010437,1740865848940,-1827.6963794,0.00024969,2]
[355010438,1740865848950,-500.0,0.00024973,2]
[355010439,1740865848960,-500.0,0.00024973,2]
[355010440,1740865848970,-500.0,0.00024973,2]
[355010441,1740865848979,-509.92537316,0.00024973,2]
[355010442,1740865848989,-503.88447595,0.00024973,2]
[355010443,1740865848998,-500.0,0.00024973,2]
[355010444,1740865849008,-500.0,0.00024973,2]
[355010445,1740865849018,-500.0,0.00024973,2]
[355010446,1740865849028,-500.0,0.00024973,2]
[355010447,1740865849037,-500.0,0.00024973,2]
[355010448,1740865849047,-500.0,0.00024973,2]
[355010449,1740865849056,-500.0,0.00024973,2]
[355010450,1740865849066,-500.0,0.00024973,2]
[355010451,1740865849076,-500.0,0.00024973,2]
[355010452,1740865849085,-299.45155416,0.00024973,2]
[355010453,1740865849096,-500.0,0.00024973,2]
[355010454,1740865849106,-500.0,0.00024973,2]
[355010455,1740865849115,-500.0,0.00024973,2]
[355010456,1740865849125,-500.0,0.00024973,2]
[355010457,1740865849135,-500.0,0.00024973,2]
[355010458,1740865849144,-500.0,0.00024973,2]
[355010459,1740865849154,-500.0,0.00024973,2]
[355010460,1740865849164,-500.0,0.00024973,2]
[355010461,1740865849173,-500.0,0.00024973,2]
[355010462,1740865849183,-3999.98,0.00025,2]
[355010463,1740865849192,-3999.98,0.00025,2]
[355010464,1740865849201,-6666.66666667,0.00025,2]
[355010465,1740865849211,-8892.51128781,0.00025,2]
[355010466,1740865849221,-190.947695,0.00025028,2]
[355010467,1740865849230,-10963.54315368,0.00025105,2]
[355010468,1740865849240,-166.1,0.0002519,2]
[355010469,1740865849251,-500.0,0.00025205,2]
[355010470,1740865849261,-716.74,0.00025205,2]
[355010471,1740865849270,-151.0,0.00025205,7]
[355010472,1740865849280,-304.570815,0.00025205,7]
[355010473,1740865849290,-500.0,0.00025205,2]
[355010474,1740865849300,-500.0,0.00025205,2]
[355010475,1740865849309,-500.0,0.00025205,2]
[355010476,1740865849319,-500.0,0.00025205,2]
[355010477,1740865849328,-611.89,0.00025205,2]
[355010478,1740865849338,-500.0,0.00025205,2]
[355010479,1740865849347,-500.0,0.00025205,2]
[355010480,1740865849357,-902.31,0.00025205,2]
[355010481,1740865849368,-500.0,0.00025205,2]
[355010482,1740865849378,-151.0,0.00025205,7]
[355010483,1740865849387,-401.13243875,0.00025205,2]
[355010484,1740865849397,-151.0,0.00025205,7]
[355010485,1740865849406,-151.0,0.00025205,7]
[355010486,1740865849416,-500.0,0.00025205,2]
[355010487,1740865849426,-151.0,0.00025205,7]
[355010488,1740865849436,-500.0,0.00025205,2]
[355010489,1740865849445,-500.0,0.00025205,2]
[355010490,1740865849455,-500.0,0.00025205,2]
[355010491,1740865849464,-500.0,0.00025205,2]
[355010492,1740865849473,-572.07,0.00025205,2]
[355010493,1740865849483,-505.8333105,0.00025205,2]
[355010494,1740865849494,-500.0,0.00025205,2]
[355010495,1740865849503,-1069.98,0.00025205,2]
[355010496,1740865849513,-500.0,0.00025205,2]
[355010497,1740865849522,-500.0,0.00025205,2]
[355010498,1740865849532,-500.0,0.00025205,2]
[355010499,1740865849542,-151.0,0.00025205,7]
[355010500,1740865849553,-525.87,0.00025205,9]
[355010501,1740865849563,-761.98,0.00025205,2]
[355010502,1740865849573,-500.0,0.00025205,2]
[355010503,1740865849582,-500.0,0.00025205,2]
[355010504,1740865849592,-616.95,0.00025205,2]
[355010505,1740865849602,-500.0,0.00025205,2]
[355010506,1740865849611,-500.0,0.00025205,2]
[355010507,1740865849621,-500.0,0.00025205,2]
[355010508,1740865849632,-793.31,0.00025205,2]
[355010509,1740865849641,-500.0,0.00025205,2]
[355010510,1740865849651,-633.80182,0.00025205,7]
[355010511,1740865849661,-500.0,0.00025205,2]
[355010512,1740865849671,-633.80182,0.00025205,7]
[355010513,1740865849681,-1040.31,0.00025205,2]
[355010514,1740865849690,-151.0,0.00025205,7]
[355010515,1740865849700,-500.0,0.00025205,2]
[355010516,1740865849711,-343.454498,0.00025205,7]
[355010517,1740865849720,-343.454498,0.00025205,7]
[355010518,1740865849730,-500.0,0.00025205,2]
[355010519,1740865849740,-1041.91,0.00025205,2]
[355010520,1740865849750,-759.41,0.00025205,2]
[355010521,1740865849760,-500.0,0.00025205,2]
[355010522,1740865849770,-151.0,0.00025205,7]
[355010523,1740865849779,-669.86,0.00025205,2]
[355010524,1740865849789,-998.27,0.00025205,2]
[355010525,1740865849798,-668.29,0.00025205,2]
[355010526,1740865849808,-981.47,0.00025205,2]
[355010527,1740865849817,-183.000529,0.00025205,7]
[355010528,1740865849827,-183.000529,0.00025205,7]
[355010529,1740865849836,-500.0,0.00025205,2]
[355010530,1740865849847,-183.000529,0.00025205,7]
[355010531,1740865849856,-183.000529,0.00025205,7]
[355010532,1740865849867,-500.0,0.00025205,2]
[355010533,1740865849877,-1497.06,0.00025205,2]
[355010534,1740865849887,-500.0,0.00025205,2]
[355010535,1740865849897,-500.0,0.00025205,2]
[355010536,1740865849907,-500.0,0.00025205,2]
[355010537,1740865849917,-500.0,0.00025205,2]
[355010538,1740865849927,-1297.68,0.00025205,2]
[355010539,1740865849937,-886.8,0.00025205,2]
[355010540,1740865849947,-671.34,0.00025205,2]
[355010541,1740865849957,-500.0,0.00025205,2]
[355010542,1740865849967,-500.0,0.00025205,2]
[355010543,1740865849977,-500.0,0.00025205,2]
[355010544,1740865849988,-653.48,0.00025205,2]
[355010545,1740865849997,-402.5862081,0.00025205,2]
[355010546,1740865850007,-500.0,0.00025205,2]
[355010547,1740865850016,-500.0,0.00025205,2]
[355010548,1740865850026,-1032.83,0.00025205,2]
[355010549,1740865850036,-500.0,0.00025205,2]
[355010550,1740865850046,-500.0,0.00025205,2]
[355010551,1740865850058,-1537.98,0.00025205,2]
[355010552,1740865850068,-500.0,0.00025205,2]
[355010553,1740865850078,-536.97888167,0.00025205,2]
[355010554,1740865850087,-1331.5,0.00025205,2]
[355010555,1740865850097,-500.0,0.00025205,2]
[355010556,1740865850106,-500.0,0.00025205,2]
[355010557,1740865850116,-500.0,0.00025205,2]
[355010558,1740865850126,-572.04,0.00025205,2]
[355010559,1740865850135,-500.0,0.00025205,2]
[355010560,1740865850145,-500.0,0.00025205,2]
[355010561,1740865850156,-723.69,0.00025205,2]
[355010562,1740865850165,-500.0,0.00025205,2]
[355010563,1740865850175,-500.0,0.00025205,2]
[355010564,1740865850185,-500.0,0.00025205,2]
[355010565,1740865850195,-500.0,0.00025205,2]
[355010566,1740865850204,-523.15,0.00025205,2]
[355010567,1740865850214,-1539.8,0.00025205,2]
[355010568,1740865850223,-1037.31,0.00025205,2]
[355010569,1740865850233,-500.0,0.00025205,2]
[355010570,1740865850311,-2368.87,0.00025205,2]
[355010571,1740865850321,-1909.25,0.00025205,2]
[355010572,1740865850330,-500.0,0.00025205,2]
[355010573,1740865850340,-500.0,0.00025205,2]
[355010574,1740865850350,-500.0,0.00025205,2]
[355010575,1740865850360,-500.0,0.00025205,2]
[355010576,1740865850369,-1079.21,0.00025205,2]
[355010577,1740865850379,-500.0,0.00025205,2]
[355010578,1740865850389,-938.62,0.00025205,2]
[355010579,1740865850398,-500.0,0.00025205,2]
[355010580,1740865850408,-1532.28,0.00025205,2]
[355010581,1740865850417,-533.24,0.00025205,2]
[355010582,1740865850426,-1643.94,0.00025205,2]
[355010583,1740865850435,-227.0,0.00025205,7]
[355010584,1740865850445,-500.0,0.00025205,2]
[355010585,1740865850455,-500.0,0.00025205,2]
[355010586,1740865850464,-500.0,0.00025205,2]
[355010587,1740865850474,-500.0,0.00025205,2]
[355010588,1740865850484,-500.0,0.00025205,2]
[355010589,1740865850493,-500.0,0.00025205,2]
[355010590,1740865850503,-1047.29,0.00025205,2]
[355010591,1740865850512,-151.0,0.00025205,7]
[355010592,1740865850522,-151.0,0.00025205,7]
[355010593,1740865850531,-500.0,0.00025205,2]
[355010594,1740865850541,-659.33,0.00025205,2]
[355010595,1740865850552,-500.0,0.00025205,2]
[355010596,1740865850563,-942.58,0.00025205,2]
[355010597,1740865850572,-848.54,0.00025205,2]
[355010598,1740865850582,-500.0,0.00025205,2]
[355010599,1740865850591,-1333.900915,0.00025205,5]
[355010600,1740865850600,-1333.900915,0.00025205,5]
[355010601,1740865850610,-1333.900915,0.00025205,5]
[355010602,1740865850619,-1333.900915,0.00025205,5]
[355010603,1740865850629,-500.0,0.00025205,2]
[355010604,1740865850639,-500.0,0.00025205,2]
[355010605,1740865850648,-280.884639,0.00025205,7]
[355010606,1740865850658,-280.884639,0.00025205,7]
[355010607,1740865850667,-1625.7,0.00025205,2]
[355010608,1740865850677,-280.884639,0.00025205,7]
[355010609,1740865850687,-280.884639,0.00025205,7]
[355010610,1740865850696,-2258.14,0.00025205,2]
[355010611,1740865850706,-520.02,0.00025205,2]
[355010612,1740865850715,-500.0,0.00025205,2]
[355010613,1740865850725,-500.0,0.00025205,2]
[355010614,1740865850735,-500.0,0.00025205,2]
[355010615,1740865850745,-500.0,0.00025205,2]
[355010616,1740865850755,-500.0,0.00025205,2]
[355010617,1740865850765,-500.0,0.00025205,2]
[355010618,1740865850774,-574.97,0.00025205,2]
[355010619,1740865850785,-590.48,0.00025205,2]
[355010620,1740865850794,-1142.55,0.00025205,2]
[355010621,1740865850803,-500.0,0.00025205,2]
[355010622,1740865850813,-151.0,0.00025205,7]
[355010623,1740865850822,-151.0,0.00025205,7]
[355010624,1740865850832,-151.0,0.00025205,7]
[355010625,1740865850841,-151.0,0.00025205,7]
[355010626,1740865850850,-500.0,0.00025205,2]
[355010627,1740865850859,-500.0,0.00025205,2]
[355010628,1740865850868,-500.0,0.00025205,2]
[355010629,1740865850879,-777.85,0.00025205,2]
[355010630,1740865850888,-994.07,0.00025205,2]
[355010631,1740865850897,-500.0,0.00025205,2]
[355010632,1740865850907,-500.0,0.00025205,2]
[355010633,1740865850916,-151.0,0.00025205,7]
[355010634,1740865850926,-151.0,0.00025205,7]
[355010635,1740865850935,-500.0,0.00025205,2]
[355010636,1740865850944,-500.0,0.00025205,2]
[355010637,1740865850954,-500.0,0.00025205,2]
[355010638,1740865850963,-675.53,0.00025205,2]
[355010639,1740865850972,-847.13,0.00025205,2]
[355010640,1740865850982,-500.0,0.00025205,2]
[355010641,1740865850991,-922.77,0.00025205,2]
[355010642,1740865851001,-541.587699,0.00025205,7]
[355010643,1740865851010,-541.587699,0.00025205,7]
[355010644,1740865851020,-890.33,0.00025205,2]
[355010645,1740865851030,-736.17,0.00025205,2]
[355010646,1740865851039,-659.61,0.00025205,2]
[355010647,1740865851049,-541.587699,0.00025205,7]
[355010648,1740865851058,-541.587699,0.00025205,7]
[355010649,1740865851067,-151.0,0.00025205,7]
[355010650,1740865851077,-151.0,0.00025205,7]
[355010651,1740865851086,-1130.53,0.00025205,2]
[355010652,1740865851096,-500.0,0.00025205,2]
[355010653,1740865851105,-500.0,0.00025205,2]
[355010654,1740865851115,-492.40166588,0.00025205,2]
[355010655,1740865851124,-500.0,0.00025205,2]
[355010656,1740865851134,-500.0,0.00025205,2]
[355010657,1740865851143,-1550.64,0.00025205,2]
[355010658,1740865851153,-500.0,0.00025205,2]
[355010659,1740865851162,-518.15,0.00025205,2]
[355010660,1740865851173,-151.0,0.00025205,7]
[355010661,1740865851182,-151.0,0.00025205,7]
[355010662,1740865851191,-500.0,0.00025205,2]
[355010663,1740865851201,-563.74,0.00025205,2]
[355010664,1740865851210,-1430.17,0.00025205,2]
[355010665,1740865851220,-500.0,0.00025205,2]
[355010666,1740865851229,-500.0,0.00025205,2]
[355010667,1740865851239,-1881.27,0.00025205,2]
[355010668,1740865851249,-151.0,0.00025205,7]
[355010669,1740865851258,-151.0,0.00025205,7]
[355010670,1740865851267,-4236.82,0.00025205,2]
[355010671,1740865851278,-863.69,0.00025205,2]
[355010672,1740865851287,-540.04,0.00025205,2]
[355010673,1740865851297,-679.89,0.00025205,2]
[355010674,1740865851306,-500.0,0.00025205,2]
[355010675,1740865851315,-1693.47,0.00025205,2]
[355010676,1740865851325,-500.0,0.00025205,2]
[355010677,1740865851334,-500.0,0.00025205,2]
[355010678,1740865851344,-500.0,0.00025205,2]
[355010679,1740865851353,-1358.57,0.00025205,2]
[355010680,1740865851363,-3797.89,0.00025205,2]
[355010681,1740865851373,-500.0,0.00025205,2]
[355010682,1740865851382,-626.03,0.00025205,2]
[355010683,1740865851391,-500.0,0.00025205,2]
[355010684,1740865851401,-177.307463,0.00025205,7]
[355010685,1740865851411,-177.307463,0.00025205,7]
[355010686,1740865851420,-519.85,0.00025205,2]
[355010687,1740865851429,-500.0,0.00025205,2]
[355010688,1740865851439,-177.307463,0.00025205,7]
[355010689,1740865851455,-172855.44,0.00025205,2]
[355010690,1740865851465,-500.0,0.00025205,2]
[355010691,1740865851475,-177.307463,0.00025205,7]
[355010692,1740865851485,-708.1,0.00025205,2]
[355010693,1740865851494,-1016.72,0.00025205,2]
[355010694,1740865851504,-163.023886,0.00025205,7]
[355010695,1740865851514,-163.023886,0.00025205,7]
[355010696,1740865851523,-163.023886,0.00025205,7]
[355010697,1740865851534,-163.023886,0.00025205,7]
[355010698,1740865851543,-548.03,0.00025205,2]
[355010699,1740865851556,-500.0,0.00025205,2]
[355010700,1740865851567,-835.93,0.00025205,2]
[355010701,1740865851577,-500.0,0.00025205,2]
[355010702,1740865851587,-3404.99,0.00025205,2]
[355010703,1740865851599,-500.0,0.00025205,2]
[355010704,1740865851609,-500.0,0.00025205,2]
[355010705,1740865851618,-500.0,0.00025205,2]
[355010706,1740865851629,-713.04,0.00025205,2]
[355010707,1740865851638,-1884.58,0.00025205,2]
[355010708,1740865851648,-151.0,0.00025205,7]
[355010709,1740865851657,-151.0,0.00025205,7]
[355010710,1740865851667,-200.0,0.00025205,2]
[355010711,1740865851676,-1033.63,0.00025205,2]
[355010712,1740865851685,-557.01,0.00025205,2]
[355010713,1740865851695,-1211.77,0.00025205,2]
[355010714,1740865851704,-151.0,0.00025205,7]
[355010715,1740865851713,-193.238254,0.00025205,7]
[355010716,1740865851722,-500.0,0.00025205,2]
[355010717,1740865851732,-2235.03,0.00025205,2]
[355010718,1740865851741,-3413.83,0.00025205,2]
[355010719,1740865851752,-910.58,0.00025205,2]
[355010720,1740865851761,-4306.34,0.00025205,2]
[355010721,1740865851771,-500.0,0.00025205,2]
[355010722,1740865851780,-1975.06,0.00025205,2]
[355010723,1740865851789,-764.64,0.00025205,2]
[355010724,1740865851799,-500.0,0.00025205,2]
[355010725,1740865851808,-993.45,0.00025205,2]
[355010726,1740865851818,-1332.32,0.00025205,2]
[355010727,1740865851828,-1827.1,0.00025205,2]
[355010728,1740865851837,-500.0,0.00025205,2]
[355010729,1740865851847,-19624.61182001,0.00025205,7]
[355010730,1740865851856,-500.0,0.00025205,2]
[355010731,1740865851865,-500.0,0.00025205,2]
[355010732,1740865851875,-500.0,0.00025205,2]
[355010733,1740865851884,-171.968109,0.00025205,7]
[355010734,1740865851894,-171.968109,0.00025205,7]
[355010735,1740865851903,-641.28,0.00025205,2]
[355010736,1740865851912,-697.14,0.00025205,2]
[355010737,1740865851923,-171.968109,0.00025205,7]
[355010738,1740865851932,-500.0,0.00025205,2]
[355010739,1740865851942,-171.968109,0.00025205,7]
[355010740,1740865851952,-500.0,0.00025205,2]
[355010741,1740865851961,-500.0,0.00025205,2]
[355010742,1740865851971,-719.29,0.00025205,2]
[355010743,1740865851980,-14467.93,0.00025205,2]
[355010744,1740865851989,-1028.98,0.00025205,2]
[355010745,1740865851999,-500.0,0.00025205,2]
[355010746,1740865852008,-500.0,0.00025205,2]
[355010747,1740865852017,-1316.85,0.00025205,2]
[355010748,1740865852027,-500.0,0.00025205,2]
[355010749,1740865852037,-1060.02,0.00025205,2]
[355010750,1740865852046,-500.0,0.00025205,2]
[355010751,1740865852055,-723.94,0.00025205,2]
[355010752,1740865852065,-1802.02,0.00025205,2]
[355010753,1740865852075,-500.0,0.00025205,2]
[355010754,1740865852085,-7079.6,0.00025205,2]
[355010755,1740865852094,-500.0,0.00025205,2]
[355010756,1740865852104,-500.0,0.00025205,2]
[355010757,1740865852113,-500.0,0.00025205,2]
[355010758,1740865852123,-717.71,0.00025205,2]
[355010759,1740865852133,-500.0,0.00025205,2]
[355010760,1740865852144,-500.0,0.00025205,2]
[355010761,1740865852154,-500.0,0.00025205,2]
[355010762,1740865852163,-4844.06,0.00025205,2]
[355010763,1740865852173,-897.19,0.00025205,2]
[355010764,1740865852183,-500.0,0.00025205,2]
[355010765,1740865852194,-500.0,0.00025205,2]
[355010766,1740865852203,-500.0,0.00025205,2]
[355010767,1740865852213,-500.0,0.00025205,2]
[355010768,1740865852223,-9915.36,0.00025205,2]
[355010769,1740865852233,-500.0,0.00025205,2]
[355010770,1740865852243,-1789.36,0.00025205,2]
[355010771,1740865852254,-1104.480692,0.00025205,7]